bitfinex/quotes_BTCUSD_20220731
["timestamp","ask_amount","ask_price","bid_price","bid_amount"]
[1659244242968,0.01655286,23824.0,23823.0,2.11087654]
[1659244243419,0.01655286,23824.0,23823.0,1.34855291]
[1659244243641,0.01655286,23824.0,23823.0,1.04488391]
[1659244244090,1.28736219,23824.0,23823.0,1.04488391]
[1659244245243,1.28736219,23824.0,23823.0,0.99988391]
[1659244246353,0.98736219,23824.0,23823.0,0.99988391]
[1659244247110,1.78736219,23824.0,23815.0,0.05]
[1659244247339,1.50637933,23823.0,23811.0,0.20989]
[1659244247553,0.40725733,23822.0,23813.0,0.209872]
[1659244247813,0.40725733,23822.0,23814.0,0.104921]
[1659244248034,0.05,23820.0,23813.0,0.209872]
[1659244248257,0.40725733,23819.0,23813.0,0.209872]
[1659244248497,0.40725733,23819.0,23813.0,0.259872]
[1659244248709,0.40725733,23819.0,23813.0,0.559872]
[1659244248925,0.40725733,23819.0,23814.0,0.303669]
[1659244249201,0.40725733,23819.0,23815.0,0.509856]
[1659244250288,0.40725733,23819.0,23815.0,0.209856]
[1659244250777,0.40725733,23819.0,23814.0,0.3]
[1659244250987,0.40725733,23819.0,23813.0,0.3]
[1659244252152,0.40725733,23819.0,23813.0,0.35]
[1659244252354,0.40725733,23819.0,23813.0,0.7]
[1659244252570,0.40725733,23819.0,23813.0,0.3]
[1659244253012,0.40725733,23819.0,23813.0,0.35]
[1659244253761,0.40725733,23819.0,23813.0,0.3]
[1659244254644,0.40725733,23819.0,23813.0,0.35]
[1659244254884,0.40725733,23819.0,23813.0,0.7]
[1659244255095,0.40725733,23820.0,23814.0,0.303669]
[1659244255311,0.40725733,23821.0,23815.0,0.3]
[1659244255527,0.40725733,23821.0,23816.0,0.20984]
[1659244258676,0.303669,23820.0,23814.0,0.40725733]
[1659244258885,0.45725733,23821.0,23814.0,0.40725733]
[1659244259095,0.45725733,23821.0,23814.0,0.005]
[1659244259096,0.40725733,23820.0,23814.0,0.005]
[1659244259783,0.40725733,23820.0,23814.0,0.3]
[1659244260006,0.40725733,23820.0,23813.0,0.753872]
[1659244260224,0.40725733,23820.0,23813.0,0.209872]
[1659244260479,0.05,23817.0,23809.0,0.5764]
[1659244260734,0.40725733,23816.0,23810.0,0.544]
[1659244262465,0.40725733,23816.0,23811.0,0.3]
[1659244262680,0.05,23817.0,23811.0,0.3]
[1659244262681,0.05,23817.0,23812.0,0.40725733]
[1659244263353,0.40725733,23816.0,23811.0,0.3]
[1659244264202,0.303669,23815.0,23811.0,0.3]
[1659244264491,0.40725733,23816.0,23811.0,0.305]
[1659244264714,0.40725733,23816.0,23812.0,0.0366191]
[1659244265368,0.40725733,23816.0,23813.0,0.05]
[1659244265593,0.303669,23815.0,23811.0,0.3]
[1659244265831,0.40725733,23816.0,23812.0,0.03467316]
[1659244266278,0.9831,23819.0,23812.0,0.03467316]
[1659244266279,1.00335733,23819.0,23813.0,0.303669]
[1659244266512,0.40725733,23819.0,23814.0,0.509861]
[1659244267636,0.40725733,23819.0,23814.0,0.209861]
[1659244267849,0.303669,23818.0,23814.0,0.209861]
[1659244268079,0.40725733,23819.0,23815.0,0.03477043]
[1659244269842,0.40719181,23819.0,23815.0,0.03477043]
[1659244271444,2.3885147,23822.0,23815.0,0.44202776]
[1659244271445,2.79577203,23822.0,23815.0,0.44202776]
[1659244271666,2.22857203,23822.0,23817.0,0.209837]
[1659244271908,2.22857203,23822.0,23817.0,0.309837]
[1659244272136,2.22857203,23822.0,23818.0,0.3]
[1659244272485,1.8213147,23822.0,23819.0,0.03467316]
[1659244272717,1.8213147,23822.0,23820.0,0.629382]
[1659244272937,0.7087696,23824.0,23821.0,0.3]
[1659244273168,1.11602693,23824.0,23821.0,0.3]
[1659244273386,0.7087696,23824.0,23822.0,0.03467316]
[1659244273865,0.7087696,23824.0,23822.0,0.24446416]
[1659244275231,0.69221674,23824.0,23823.0,1.99740633]
[1659244275446,0.69221674,23824.0,23823.0,2.71714409]
[1659244275447,0.50617413,23824.0,23823.0,2.71714409]
[1659244275691,0.45578678,23824.0,23823.0,2.41714409]
[1659244275932,0.18740314,23824.0,23823.0,2.41714409]
[1659244276200,0.00495926,23830.0,23828.0,0.1]
[1659244276426,0.00495926,23830.0,23828.0,0.50753004]
[1659244276658,0.00495926,23830.0,23828.0,0.90753004]
[1659244276883,0.00495926,23830.0,23828.0,0.80753004]
[1659244277100,0.00495926,23830.0,23828.0,1.11119904]
[1659244277554,0.00495926,23830.0,23828.0,1.21719904]
[1659244278227,0.00495926,23830.0,23828.0,1.16719904]
[1659244278824,0.00495926,23830.0,23828.0,1.11119904]
[1659244278831,0.00495926,23830.0,23828.0,1.1958722]
[1659244279238,0.00495926,23830.0,23828.0,1.1458722]
[1659244279421,0.00495926,23830.0,23828.0,1.1938722]
[1659244279625,0.00495926,23830.0,23828.0,1.6253522]
[1659244279827,0.00495926,23830.0,23828.0,1.3253522]
[1659244280501,0.00495926,23830.0,23828.0,1.8782522]
[1659244280671,0.00495926,23830.0,23828.0,1.8302522]
[1659244280881,0.00495926,23830.0,23828.0,1.2773522]
[1659244281478,0.00495926,23830.0,23828.0,1.3573522]
[1659244281647,0.00495926,23830.0,23828.0,1.35818754]
[1659244282279,0.00495926,23830.0,23828.0,1.32670754]
[1659244282739,0.00495926,23830.0,23828.0,1.27818754]
[1659244283547,0.00495926,23830.0,23828.0,1.35818754]
[1659244284292,0.00495926,23830.0,23828.0,1.22670754]
[1659244284733,0.00495926,23830.0,23828.0,1.14670754]
[1659244285366,0.00495926,23830.0,23828.0,1.18570754]
[1659244285583,0.00495926,23830.0,23828.0,1.52491977]
[1659244285791,0.00495926,23830.0,23828.0,1.57491977]
[1659244286885,0.00495926,23830.0,23828.0,1.53591977]
[1659244287319,0.00495926,23830.0,23828.0,1.24670754]
[1659244287561,0.00495926,23830.0,23828.0,1.30570754]
[1659244288025,0.00495926,23830.0,23828.0,1.3048722]
[1659244288655,0.00495926,23830.0,23828.0,1.2458722]
[1659244289352,0.00495926,23830.0,23828.0,1.3048722]
[1659244291082,0.00495926,23830.0,23828.0,1.2458722]
[1659244291595,0.00495926,23830.0,23828.0,1.3048722]
[1659244292945,0.00495926,23830.0,23828.0,1.2458722]
[1659244293493,0.00495926,23830.0,23828.0,1.3048722]
[1659244293931,0.00495926,23830.0,23828.0,1.0048722]
[1659244294189,0.13731,23829.0,23828.0,0.059]
[1659244294880,0.13731,23829.0,23827.0,0.0355085]
[1659244295350,0.13731,23829.0,23827.0,0.00083534]
[1659244295599,0.13731,23829.0,23828.0,0.08029251]
[1659244296271,0.09286,23829.0,23828.0,0.08029251]
[1659244296712,0.003,23829.0,23828.0,0.08029251]
[1659244296913,0.09286,23829.0,23828.0,0.08029251]
[1659244297150,0.67613391,23829.0,23828.0,0.08029251]
[1659244297377,0.67613391,23829.0,23828.0,0.00229251]
[1659244297602,0.67613391,23829.0,23828.0,0.01729251]
[1659244297603,0.72058391,23829.0,23828.0,0.01729251]
[1659244297820,1.02425291,23829.0,23828.0,0.01729251]
[1659244298083,1.02413446,23829.0,23828.0,0.01729251]
[1659244298522,0.79637746,23829.0,23828.0,0.42454984]
[1659244298742,0.58615546,23829.0,23828.0,1.01321884]
[1659244298956,0.58615546,23829.0,23828.0,0.744223]
[1659244299190,0.58615546,23829.0,23828.0,0.33696567]
[1659244299512,0.58615546,23829.0,23828.0,0.38296567]
[1659244299741,0.58615546,23829.0,23828.0,0.0822008]
[1659244299983,0.58615546,23829.0,23828.0,0.38248869]
[1659244300225,0.58615546,23829.0,23828.0,0.88974602]
[1659244300445,0.58615546,23829.0,23828.0,1.19341502]
[1659244301329,0.58615546,23829.0,23828.0,1.14741502]
[1659244301548,0.58615546,23829.0,23828.0,1.19141502]
[1659244302915,0.58615546,23829.0,23828.0,1.14741502]
[1659244303386,0.58615546,23829.0,23828.0,1.19141502]
[1659244304270,0.58615546,23829.0,23828.0,1.19218006]
[1659244304764,0.58615546,23829.0,23828.0,1.14818006]
[1659244305429,0.58615546,23829.0,23828.0,1.22818006]
[1659244306554,0.67601546,23829.0,23828.0,0.79321901]
[1659244306788,0.67601546,23829.0,23828.0,0.40955001]
[1659244307068,0.58615546,23829.0,23828.0,0.71321901]
[1659244307502,0.58615546,23829.0,23828.0,0.75721901]
[1659244307720,0.58615546,23829.0,23828.0,0.79189217]
[1659244307952,0.58615546,23829.0,23828.0,1.19189217]
[1659244308424,0.58615546,23829.0,23828.0,0.88822317]
[1659244308648,0.58615546,23829.0,23828.0,1.19189217]
[1659244309325,0.00495926,23830.0,23829.0,1.105]
[1659244309590,0.007206,23836.0,23830.0,1.05]
[1659244309819,0.007206,23836.0,23832.0,0.629067]
[1659244310039,0.007206,23836.0,23833.0,0.33496098]
[1659244310258,0.007206,23836.0,23834.0,0.05]
[1659244310491,0.007206,23836.0,23835.0,0.97061133]
[1659244310712,0.007206,23836.0,23832.0,0.20971]
[1659244310713,0.097066,23836.0,23832.0,0.20971]
[1659244311207,0.097066,23836.0,23833.0,0.74559949]
[1659244311208,0.007206,23836.0,23833.0,0.74559949]
[1659244311445,0.41446333,23836.0,23834.0,0.05]
[1659244311668,0.5,23834.0,23830.0,0.00144822]
[1659244311890,0.045,23831.0,23830.0,0.00144822]
[1659244312578,0.80592633,23831.0,23830.0,0.00144822]
[1659244312791,1.10592633,23831.0,23830.0,0.00144822]
[1659244313487,1.18492633,23831.0,23830.0,0.00144822]
[1659244314855,1.10592633,23831.0,23830.0,0.00144822]
[1659244315318,0.80592633,23831.0,23830.0,0.00144822]
[1659244315548,0.88492633,23831.0,23830.0,0.00144822]
[1659244315770,0.88492633,23831.0,23830.0,0.00219246]
[1659244316862,0.80592633,23831.0,23830.0,0.00219246]
[1659244317521,0.88492633,23831.0,23830.0,0.00219246]
[1659244317980,0.88492633,23831.0,23830.0,0.00209746]
[1659244317981,1.18492633,23831.0,23830.0,0.00209746]
[1659244318722,1.18493,23830.0,23829.0,0.00072665]
[1659244318945,1.18493,23830.0,23817.0,0.8690106]
[1659244318946,4.00816533,23830.0,23817.0,0.8690106]
[1659244319172,0.05,23826.0,23817.0,0.40725733]
[1659244319394,0.70725733,23825.0,23817.0,0.40725733]
[1659244319617,0.40725733,23824.0,23817.0,0.40725733]
[1659244319838,0.40725733,23824.0,23817.0,0.005]
[1659244320076,0.40725733,23824.0,23817.0,0.40725733]
[1659244320295,0.40725733,23824.0,23818.0,0.209835]
[1659244321205,0.40725733,23824.0,23818.0,0.609835]
[1659244321427,0.44525733,23824.0,23818.0,0.509835]
[1659244321655,0.44525733,23824.0,23819.0,0.71092633]
[1659244321656,0.038,23824.0,23819.0,0.71092633]
[1659244321884,0.038,23824.0,23820.0,1.06092633]
[1659244322096,0.038,23824.0,23819.0,0.40725733]
[1659244322589,0.038,23824.0,23820.0,0.3]
[1659244322590,0.303669,23823.0,23820.0,0.3]
[1659244322815,0.01666,23827.0,23820.0,0.35]
[1659244323037,0.71092633,23826.0,23820.0,0.3]
[1659244323259,0.210222,23825.0,23820.0,0.3]
[1659244323512,0.40725733,23826.0,23820.0,0.3]
[1659244323743,0.303669,23825.0,23820.0,0.3]
[1659244323957,0.40725733,23826.0,23820.0,0.3007192]
[1659244324178,0.303669,23825.0,23820.0,0.3007192]
[1659244324391,0.40725733,23826.0,23820.0,0.3007192]
[1659244324626,0.303669,23825.0,23820.0,0.3007192]
[1659244324885,0.40725733,23826.0,23820.0,0.5105402]
[1659244325574,0.382669,23825.0,23820.0,0.5105402]
[1659244325789,0.079,23825.0,23820.0,0.5105402]
[1659244326015,0.079,23825.0,23820.0,0.51123828]
[1659244326255,0.079,23825.0,23821.0,0.00083551]
[1659244326499,0.303669,23824.0,23821.0,0.00083551]
[1659244326717,0.40725733,23825.0,23821.0,0.3]
[1659244326936,0.303669,23824.0,23818.0,0.75194933]
[1659244327161,0.40725733,23825.0,23821.0,0.00071299]
[1659244327408,0.303669,23824.0,23821.0,0.00071299]
[1659244327626,0.40725733,23825.0,23821.0,0.00071299]
[1659244327848,0.303669,23824.0,23821.0,0.00071299]
[1659244328067,0.40725733,23826.0,23821.0,0.00071299]
[1659244328287,0.303669,23825.0,23821.0,0.00071299]
[1659244328518,0.210222,23824.0,23821.0,0.00071299]
[1659244328735,0.45025733,23825.0,23821.0,0.00071299]
[1659244328968,0.303669,23824.0,23821.0,0.00071299]
[1659244329187,0.45025733,23825.0,23821.0,0.00071299]
[1659244329425,0.303669,23824.0,23820.0,0.21124301]
[1659244329639,0.49325733,23825.0,23820.0,0.21124301]
[1659244329865,0.303669,23824.0,23820.0,0.21124301]
[1659244330187,0.40725733,23825.0,23821.0,0.03467316]
[1659244330509,0.303669,23824.0,23820.0,0.51124301]
[1659244330753,0.40725733,23825.0,23820.0,0.51124301]
[1659244331186,0.40725733,23825.0,23820.0,0.21124301]
[1659244332513,0.303669,23824.0,23820.0,0.21124301]
[1659244332712,0.40725733,23825.0,23820.0,0.21124301]
[1659244333400,0.40725733,23825.0,23821.0,0.00068229]
[1659244333847,0.45025733,23825.0,23821.0,0.00068229]
[1659244334766,0.303669,23824.0,23821.0,0.00068229]
[1659244335210,0.40725733,23825.0,23821.0,0.00068229]
[1659244335450,0.303669,23824.0,23821.0,0.00068229]
[1659244335669,0.40725733,23825.0,23821.0,0.00068229]
[1659244335906,0.303669,23824.0,23821.0,0.00068229]
[1659244336118,0.40725733,23825.0,23821.0,0.00068229]
[1659244336343,0.303669,23824.0,23821.0,0.00068229]
[1659244336562,0.40725733,23825.0,23821.0,0.00068229]
[1659244336776,0.303669,23824.0,23821.0,0.00068229]
[1659244337011,0.40725733,23825.0,23821.0,0.00068229]
[1659244337666,0.40725733,23825.0,23822.0,0.03467316]
[1659244337945,0.40725733,23825.0,23821.0,0.00068229]
[1659244338178,0.40725733,23825.0,23821.0,0.30068229]
[1659244338395,0.45025733,23825.0,23821.0,0.30068229]
[1659244338852,0.45025733,23825.0,23822.0,0.259809]
[1659244338853,0.088,23825.0,23822.0,0.259809]
[1659244339076,0.088,23825.0,23823.0,0.303669]
[1659244339308,0.088,23825.0,23824.0,0.60385922]
[1659244339538,0.3,23830.0,23824.0,0.33486338]
[1659244339761,0.59256,23831.0,23825.0,0.209782]
[1659244339762,0.40725733,23829.0,23825.0,0.209782]
[1659244339981,0.303669,23828.0,23825.0,0.209782]
[1659244340215,0.40725733,23828.0,23825.0,0.214782]
[1659244340676,0.40725733,23828.0,23825.0,0.209782]
[1659244342082,0.303669,23827.0,23825.0,0.214782]
[1659244342311,0.40725733,23828.0,23825.0,0.32845516]
[1659244342755,0.40725733,23830.0,23826.0,0.3]
[1659244343027,0.303669,23829.0,23826.0,0.55973365]
[1659244343246,0.40725733,23833.0,23828.0,0.734179]
[1659244343483,0.40725733,23833.0,23829.0,0.3]
[1659244343723,0.6096,23835.0,23830.0,0.13952916]
[1659244343724,0.40725733,23835.0,23830.0,0.13952916]
[1659244343942,0.40725733,23835.0,23831.0,0.629139]
[1659244344401,0.303669,23834.0,23831.0,0.209713]
[1659244344616,0.48625733,23835.0,23831.0,0.209713]
[1659244344856,0.303669,23834.0,23831.0,0.209713]
[1659244345076,0.61747933,23833.0,23826.0,0.63138]
[1659244345290,0.079,23835.0,23827.0,0.3]
[1659244345291,0.71092633,23832.0,23827.0,0.3]
[1659244345695,0.40725733,23832.0,23827.0,0.3]
[1659244345922,0.40725733,23832.0,23826.0,0.3]
[1659244346154,0.40725733,23832.0,23827.0,0.005]
[1659244346381,0.40725733,23832.0,23827.0,0.084]
[1659244346850,0.40725733,23832.0,23827.0,0.079]
[1659244346851,0.603669,23831.0,23827.0,0.079]
[1659244347099,0.61747933,23830.0,23827.0,0.079]
[1659244347325,0.71092633,23829.0,23827.0,0.079]
[1659244347544,0.96747933,23828.0,23827.0,0.079]
[1659244347779,0.40725733,23828.0,23827.0,0.03467316]
[1659244347994,0.40725733,23828.0,23827.0,0.03605689]
[1659244348438,0.40725733,23828.0,23827.0,0.11505689]
[1659244349085,0.40725733,23828.0,23827.0,0.11573891]
[1659244349760,0.40725733,23828.0,23827.0,0.03673891]
[1659244350409,0.40725733,23828.0,23827.0,0.08106575]
[1659244350867,0.40715574,23828.0,23827.0,0.08106575]
[1659244351311,0.40725733,23831.0,23827.0,0.11573891]
[1659244351531,0.40725733,23832.0,23828.0,0.209748]
[1659244351746,0.40725733,23832.0,23828.0,0.509748]
[1659244352465,0.45225733,23832.0,23828.0,0.509748]
[1659244353421,0.303669,23831.0,23828.0,0.509748]
[1659244353671,0.40725733,23832.0,23828.0,0.509748]
[1659244353903,0.40725733,23832.0,23829.0,0.00019018]
[1659244354124,0.40725733,23832.0,23828.0,0.509748]
[1659244354337,0.48625733,23832.0,23828.0,0.509748]
[1659244354798,0.303669,23831.0,23829.0,0.00067921]
[1659244355014,0.48625733,23832.0,23829.0,0.00067921]
[1659244355227,0.48625733,23832.0,23829.0,0.00567921]
[1659244355437,0.48625733,23832.0,23829.0,0.00067921]
[1659244355658,0.48625733,23832.0,23830.0,0.03467316]
[1659244356192,0.303669,23831.0,23830.0,0.03467316]
[1659244356425,0.53825733,23832.0,23829.0,0.00067921]
[1659244356643,0.45925733,23832.0,23829.0,0.00067921]
[1659244357081,0.303669,23831.0,23829.0,0.00067921]
[1659244357294,0.45925733,23832.0,23829.0,0.14054255]
[1659244357764,0.40725733,23832.0,23829.0,0.44054255]
[1659244358199,0.8975,23834.0,23829.0,0.34054255]
[1659244358200,1.00475733,23834.0,23829.0,0.34054255]
[1659244358432,0.079,23832.0,23830.0,0.209731]
[1659244358656,0.079,23832.0,23830.0,0.509731]
[1659244359786,0.40725733,23834.0,23830.0,0.509731]
[1659244360261,0.40725733,23834.0,23830.0,0.51111595]
[1659244360481,0.44525733,23834.0,23830.0,0.51111595]
[1659244360923,0.303669,23833.0,23830.0,0.51111595]
[1659244361222,0.44525733,23834.0,23830.0,0.51111595]
[1659244361660,0.04265497,23832.0,23830.0,0.51042207]
[1659244361885,0.04265497,23832.0,23830.0,0.56042207]
[1659244362100,0.04265497,23832.0,23830.0,0.51042207]
[1659244362339,0.04265497,23832.0,23830.0,0.58842207]
[1659244363444,0.40725733,23834.0,23830.0,0.58980846]
[1659244363667,0.303669,23833.0,23830.0,0.51180846]
[1659244363878,0.40725733,23834.0,23830.0,0.51180846]
[1659244364128,0.70725733,23835.0,23830.0,0.56180846]
[1659244364361,0.70725733,23835.0,23830.0,0.61180846]
[1659244364362,0.042,23833.0,23830.0,0.61180846]
[1659244364593,0.042,23833.0,23830.0,0.51180846]
[1659244364840,0.44925733,23833.0,23830.0,0.21180846]
[1659244365080,0.303669,23832.0,23830.0,0.00207746]
[1659244365293,0.44925733,23833.0,23830.0,0.00207746]
[1659244365294,0.045,23831.0,23830.0,0.00207746]
[1659244365515,0.44925733,23833.0,23830.0,0.00207746]
[1659244365748,0.71092633,23832.0,23830.0,0.00207746]
[1659244365969,0.045,23831.0,23830.0,0.00207746]
[1659244366478,0.045,23831.0,23830.0,0.08107746]
[1659244366479,1.05592633,23831.0,23830.0,0.08107746]
[1659244366967,0.80592633,23831.0,23830.0,0.08107746]
[1659244368128,0.76092633,23831.0,23830.0,0.08107746]
[1659244368366,0.75092633,23831.0,23830.0,0.00207746]
[1659244369683,0.71092633,23831.0,23830.0,0.00207746]
[1659244370366,1.08892633,23831.0,23830.0,0.00207746]
[1659244371723,0.71092633,23831.0,23830.0,0.00207746]
[1659244371975,0.00068254,23830.0,23820.0,0.5628]
[1659244372192,0.210222,23829.0,23820.0,0.5628]
[1659244372412,0.210222,23829.0,23818.0,0.5925]
[1659244372413,0.05,23827.0,23818.0,0.5925]
[1659244372680,0.70725733,23826.0,23818.0,0.5925]
[1659244372905,0.40725733,23825.0,23818.0,0.5925]
[1659244373143,0.40725733,23825.0,23819.0,0.303669]
[1659244373404,0.40725733,23825.0,23820.0,0.303669]
[1659244373642,0.40725733,23825.0,23819.0,0.209838]
[1659244373883,0.40725733,23824.0,23820.0,0.303669]
[1659244374100,0.40725733,23824.0,23821.0,0.33834216]
[1659244374313,0.40725733,23824.0,23821.0,0.005]
[1659244374533,0.40725733,23824.0,23820.0,0.3]
[1659244375228,0.40725733,23824.0,23821.0,0.33834216]
[1659244375441,0.40725733,23824.0,23821.0,0.005]
[1659244375691,0.40725733,23824.0,23820.0,0.3]
[1659244375908,0.40725733,23824.0,23819.0,0.509838]
[1659244376118,0.40725733,23824.0,23819.0,0.559838]
[1659244376362,0.40725733,23824.0,23820.0,0.07627777]
[1659244376624,0.42925733,23824.0,23820.0,0.07627777]
[1659244377091,0.022,23824.0,23821.0,0.54816216]
[1659244377334,0.42925733,23824.0,23821.0,0.20982]
[1659244377554,0.42925733,23824.0,23822.0,0.05]
[1659244377799,0.303669,23823.0,23821.0,0.005]
[1659244378018,0.40725733,23824.0,23821.0,0.005]
[1659244378162,0.40725733,23824.0,23820.0,0.00127777]
[1659244378375,0.03,23823.0,23821.0,0.077]
[1659244378987,0.03,23823.0,23821.0,0.11667316]
[1659244379229,0.70725733,23822.0,23821.0,0.082]
[1659244379478,0.70725733,23822.0,23821.0,0.077]
[1659244379479,1.35972609,23822.0,23821.0,0.077]
[1659244379702,1.05972609,23822.0,23821.0,0.077]
[1659244379925,0.255222,23821.0,23820.0,0.00127777]
[1659244380152,0.66247933,23821.0,23820.0,0.00127777]
[1659244380629,0.66247933,23821.0,23820.0,0.00063934]
[1659244380865,1.40437933,23821.0,23820.0,0.00063934]
[1659244381523,0.05,23818.0,23811.0,0.45385377]
[1659244381785,0.05,23818.0,23812.0,0.105]
[1659244381786,0.510222,23817.0,23812.0,0.105]
[1659244382028,0.71092633,23816.0,23809.0,0.797334]
[1659244382283,0.40725733,23815.0,23809.0,0.209934]
[1659244382503,0.40725733,23815.0,23810.0,0.303669]
[1659244382723,0.40725733,23815.0,23811.0,0.933379]
[1659244382963,0.40725733,23815.0,23812.0,0.33834216]
[1659244383172,0.40725733,23815.0,23813.0,0.303669]
[1659244383383,0.40725733,23815.0,23813.0,0.209903]
[1659244383648,0.40725733,23814.0,23813.0,0.209903]
[1659244384372,0.40725733,23814.0,23813.0,0.288903]
[1659244385478,1.20282633,23814.0,23813.0,0.079]
[1659244385928,0.185222,23813.0,23809.0,0.0006488]
[1659244386162,0.603669,23812.0,23809.0,0.0006488]
[1659244386370,0.59250233,23811.0,23809.0,0.0006488]
[1659244386588,0.71077533,23810.0,23809.0,0.0006488]
[1659244388453,0.74877533,23810.0,23809.0,0.0006488]
[1659244389785,0.71077533,23810.0,23809.0,0.0006488]
[1659244390443,0.75377533,23810.0,23809.0,0.0006488]
[1659244390663,0.75377533,23810.0,23808.0,0.0021]
[1659244390664,1.10377533,23810.0,23808.0,0.0021]
[1659244390897,1.44005333,23809.0,23808.0,0.0021]
[1659244391368,1.44005333,23809.0,23805.0,0.0021]
[1659244391369,1.303518,23807.0,23805.0,0.0021]
[1659244391584,2.07117533,23807.0,23805.0,0.0021]
[1659244392141,1.12117533,23807.0,23805.0,0.0021]
[1659244392372,0.75,23806.0,23801.0,0.0002]
[1659244392589,0.59265333,23805.0,23801.0,0.0002]
[1659244392826,0.71077533,23804.0,23801.0,0.0002]
[1659244393048,0.40725733,23803.0,23801.0,0.0002]
[1659244394197,0.25,23806.0,23802.0,0.03467316]
[1659244394198,0.40725733,23806.0,23802.0,0.03467316]
[1659244394421,0.40725733,23806.0,23801.0,0.2242]
[1659244394422,0.027,23803.0,23801.0,0.2242]
[1659244395521,0.027,23803.0,23802.0,0.03467316]
[1659244395734,0.45725733,23806.0,23801.0,0.1502]
[1659244395987,0.71077533,23805.0,23801.0,0.1502]
[1659244396197,0.59265333,23804.0,23801.0,0.1502]
[1659244396425,0.303518,23803.0,23801.0,0.1502]
[1659244396650,0.40725733,23804.0,23801.0,0.0002]
[1659244396899,0.40725733,23802.0,23801.0,0.0002]
[1659244398504,0.40725733,23804.0,23801.0,0.11287316]
[1659244398759,0.40725733,23804.0,23803.0,0.05]
[1659244398980,0.71077533,23804.0,23801.0,0.1282]
[1659244399224,0.59265333,23803.0,23801.0,0.1282]
[1659244399448,0.40725733,23803.0,23801.0,0.12883801]
[1659244399712,0.40725733,23803.0,23801.0,0.16351117]
[1659244400359,0.43325733,23803.0,23801.0,0.16051117]
[1659244400773,0.42325733,23803.0,23801.0,0.16051117]
[1659244401119,0.42325733,23803.0,23801.0,0.12583801]
[1659244401377,0.42325733,23803.0,23801.0,0.16051117]
[1659244401834,0.39725733,23803.0,23801.0,0.08551117]
[1659244402250,0.39725733,23803.0,23801.0,0.05083801]
[1659244402551,0.42425733,23803.0,23801.0,0.15951117]
[1659244402728,0.42425733,23803.0,23801.0,0.12483801]
[1659244403746,0.42425733,23803.0,23801.0,0.05083801]
[1659244403747,0.39725733,23803.0,23801.0,0.05083801]
[1659244404361,0.3,23802.0,23801.0,0.07583801]
[1659244404603,1.01077533,23802.0,23801.0,0.07583801]
[1659244404807,1.01077533,23802.0,23799.0,0.001]
[1659244404808,1.0,23800.0,23799.0,0.001]
[1659244405010,2.15277533,23800.0,23799.0,0.001]
[1659244405228,2.10277533,23800.0,23799.0,0.001]
[1659244405636,2.15277533,23800.0,23799.0,0.001]
[1659244405859,2.51597533,23800.0,23799.0,0.001]
[1659244406087,2.56597533,23800.0,23799.0,0.001]
[1659244406329,3.00787533,23800.0,23799.0,0.001]
[1659244406533,3.03687533,23800.0,23798.0,0.0001]
[1659244406732,1.45267533,23799.0,23798.0,0.0001]
[1659244406902,1.50267533,23799.0,23798.0,0.0001]
[1659244407400,0.71077533,23799.0,23798.0,0.0001]
[1659244408521,0.75777533,23799.0,23798.0,0.0001]
[1659244409636,0.75777533,23799.0,23798.0,0.00071758]
[1659244409850,0.70077533,23799.0,23798.0,0.00071758]
[1659244410501,0.73977533,23799.0,23798.0,0.00071758]
[1659244411752,0.70077533,23799.0,23798.0,0.00071758]
[1659244414203,0.74477533,23799.0,23798.0,0.00071758]
[1659244414835,0.78877533,23799.0,23798.0,0.00071758]
[1659244415731,0.70077533,23799.0,23798.0,0.00071758]
[1659244416388,0.74477533,23799.0,23798.0,0.00071758]
[1659244417773,0.70077533,23799.0,23798.0,0.00071758]
[1659244418464,0.73977533,23799.0,23798.0,0.00071758]
[1659244419796,0.70077533,23799.0,23798.0,0.00071758]
[1659244420467,0.74277533,23799.0,23798.0,0.00071758]
[1659244421843,0.70077533,23799.0,23798.0,0.00071758]
[1659244422529,0.77977533,23799.0,23798.0,0.00071758]
[1659244423710,0.70077533,23799.0,23798.0,0.00071758]
[1659244424376,0.76377533,23799.0,23798.0,0.00071758]
[1659244425503,0.76377533,23799.0,23798.0,0.00061931]
[1659244426301,0.70077533,23799.0,23798.0,0.00061931]
[1659244426533,0.77977533,23799.0,23798.0,0.04506931]
[1659244426759,0.77977533,23799.0,23798.0,0.40061931]
[1659244426760,0.079,23799.0,23798.0,0.40061931]
[1659244426985,0.079,23799.0,23798.0,1.36149864]
[1659244427202,0.079,23799.0,23798.0,1.39301864]
[1659244427428,0.079,23799.0,23798.0,1.44301864]
[1659244427879,0.69023406,23802.0,23798.0,1.44301864]
[1659244428115,0.69023406,23802.0,23799.0,1.265114]
[1659244428367,0.69023406,23802.0,23801.0,0.15]
[1659244428602,0.69023406,23802.0,23801.0,0.785132]
[1659244428824,0.69023406,23802.0,23801.0,0.453622]
[1659244429043,0.69023406,23802.0,23801.0,0.45655511]
[1659244429512,0.68523406,23802.0,23801.0,0.75655511]
[1659244430487,0.71723406,23802.0,23801.0,0.75655511]
[1659244431604,0.71723406,23802.0,23801.0,0.45293311]
[1659244431813,0.68523406,23802.0,23801.0,0.75655511]
[1659244432252,0.68523406,23802.0,23801.0,0.45655511]
[1659244432471,0.68523406,23802.0,23801.0,0.75655511]
[1659244432978,0.68523406,23802.0,23801.0,0.15293311]
[1659244433197,0.68523406,23802.0,23801.0,0.45655511]
[1659244433441,0.71723406,23802.0,23801.0,0.45655511]
[1659244433664,0.71723406,23802.0,23801.0,0.75655511]
[1659244433885,0.71723406,23802.0,23801.0,0.45655511]
[1659244434344,0.71723406,23802.0,23801.0,0.45365502]
[1659244434557,0.72623406,23802.0,23801.0,0.45365502]
[1659244434788,0.72623406,23802.0,23801.0,0.75727702]
[1659244435027,0.72623406,23802.0,23801.0,0.45727702]
[1659244435243,0.68523406,23802.0,23801.0,0.45727702]
[1659244435489,0.68523406,23802.0,23801.0,0.45365502]
[1659244435910,0.68523406,23802.0,23801.0,0.75727702]
[1659244436594,0.69423406,23802.0,23801.0,0.75727702]
[1659244437498,0.69423406,23802.0,23801.0,0.45727702]
[1659244437722,0.68523406,23802.0,23801.0,0.75727702]
[1659244438475,0.69423406,23802.0,23801.0,0.75727702]
[1659244439844,0.69423406,23802.0,23801.0,0.45434391]
[1659244440070,0.69423406,23802.0,23801.0,0.15072191]
[1659244440071,0.99785606,23802.0,23801.0,0.15072191]
[1659244440306,1.39611339,23802.0,23801.0,0.15072191]
[1659244440532,1.43211339,23802.0,23801.0,0.00072191]